Cogmind - Beta 17.1 @@@ ROGUE MODE // 2026.09.11 @ 02:51:56 Player: KN-OKO Result: Exoskeleton Destroyed Performance ------------- Evolutions (9) 4500 Regions Visited (21) 4200 Robots Destroyed (367) 1835 Value Destroyed (23431) 23431 Prototype IDs (368) 7360 Alien Tech Used (18) 3600 Bonus (72491) 72491 TOTAL SCORE: 117417 Bonus ------- Triggered Max Security 4000 High Alert Combat Kills 7318 Follower Combat Kills 2215 Prayed to X0-1V1 5000 Major X0-1V1 Interference 20650 Network Hubs Disabled 200 Met R17 at Cetus 500 Used Core Reset Matrix 3000 Met R17 at Research 2000 Scanned by Researcher 500 Pursued by Intercept 1000 Integrated Exoskeleton 5000 Destroyed MAIN.C Guards 500 Met MAIN.C 5000 Destroyed MAIN.C Shell 5000 Destroyed MAIN.C 10000 Met Architect 300 Destroyed A8 300 Destroyed A5 500 Friendly Fire -492 Cogmind --------- Core Integrity 0/1700 Matter 216/425 Energy 448/450 System Corruption 0% Temperature Cool (27) +ITN Movement Walking (90) Ox1 +NEM 1 Location -1/Access_0 Parts ------- > --- POWER (1) -------- Improved Quantum Reactor > --- PROPULSION (3) --- Sigix Exoskeleton > --- UTILITY (5) ------ Experimental Targeting Computer Experimental Core Analyzer Experimental Phase Shifter (fused) AEGIS Remote Shield (fused) X0-1V1's Piety Tracker > --- WEAPON (8) ------- Core Cannon Sigix Shearcannon (fused) Sigix Broadsword (fused) > --- INVENTORY (6) ---- Light Quantum Reactor Spacefold Activator Sigix Broadsword Peak State ------------ > --- POWER ------------ Improved Quantum Reactor > --- PROPULSION ------- Sigix Exoskeleton > --- UTILITY ---------- Experimental Targeting Computer Experimental Core Analyzer Experimental Phase Shifter AEGIS Remote Shield X0-1V1's Piety Tracker > --- WEAPON ----------- Core Cannon Sigix Shearcannon Sigix Broadsword > --- INVENTORY -------- Light Quantum Reactor Spacefold Activator Sigix Broadsword [Rating: 310] Favorites ----------- Power Quantum Reactor Engine Cooled Deuterium Engine Power Core Neutrino Core Reactor Quantum Reactor Propulsion Armored Medium Treads Treads Armored Medium Treads Leg Carbon-fiber Leg Wheel Armored Wheel Utility X0-1V1's Piety Tracker Device X0-1V1's Piety Tracker Storage High-capacity Storage Unit Processor Advanced Targeting Computer Hackware Advanced Hacking Suite Protection Centrium Medium Armor Plating Artifact Core Physics Calibrator Weapon Advanced KE Penetrator Energy Gun Thermic Laser Energy Cannon Plasma Cannon Ballistic Gun Advanced KE Penetrator Ballistic Cannon Hypercooled Linear Accelerator Launcher Subdweller Shrapnel Launcher Impact Weapon Thunder Hammer Slashing Weapon Sigix Broadsword Piercing Weapon Enhanced Force Lance Build | -11 -10 -10 -8 -7 -6 -6 -6 -5 -4 -4 -4 -4 -4 -3 -3 -3 -2 -2 -1 -1 -1 ------- Run | Yrd Mat Sub Mat Fac Fac Was Fac Fac Fac Ext Cet Arc Hub Res Qua Sec Res Tes Acc Com Ac0 Slots Evolved 18 | . . . 4 2 2 . . 2 2 . . . . 2 . . 2 . 2 . . Power 1 | . . . . . . . . 1 . . . . . . . . . . . . . Propulsion 4 | . . . . 2 . . . 1 1 . . . . . . . . . . . . Utility 9 | . . . 2 . 2 . . . 1 . . . . 2 . . . . 2 . . Weapon 4 | . . . 2 . . . . . . . . . . . . . 2 . . . . Parts Attached 267 | 7 5 17 14 7 12 2 41 17 12 12 11 . 4 22 39 20 2 2 5 15 1 Power 31 | 1 . 1 1 1 1 . 2 3 . 2 2 . . 3 7 3 . . . 3 1 Engine 6 | 1 . . 1 1 . . 2 1 . . . . . . . . . . . . . Core 4 | . . 1 . . 1 . . 2 . . . . . . . . . . . . . Reactor 21 | . . . . . . . . . . 2 2 . . 3 7 3 . . . 3 1 Propulsion 51 | 2 . 5 3 2 1 1 14 3 3 2 5 . . 2 5 3 . . . . . Treads 30 | 2 . 1 3 1 1 1 1 1 2 2 5 . . 2 5 3 . . . . . Leg 12 | . . 2 . . . . 8 1 1 . . . . . . . . . . . . Wheel 9 | . . 2 . 1 . . 5 1 . . . . . . . . . . . . . Hover . | . . . . . . . . . . . . . . . . . . . . . . Flight . | . . . . . . . . . . . . . . . . . . . . . . Utility 109 | 2 3 4 6 . 4 1 16 5 7 2 . . 2 14 19 6 . 1 5 12 . Device 65 | 1 1 2 4 . 4 . 10 2 5 1 . . 1 8 13 2 . . 3 8 . Storage 7 | 1 2 . . . . 1 . . 1 1 . . . . 1 . . . . . . Processor 16 | . . . 1 . . . 2 1 . . . . . 3 1 2 . 1 1 4 . Hackware 2 | . . . . . . . . . 1 . . . . . . . . . 1 . . Protection 16 | . . 2 1 . . . 4 2 . . . . 1 3 3 . . . . . . Artifact 3 | . . . . . . . . . . . . . . . 1 2 . . . . . Weapon 76 | 2 2 7 4 4 6 . 9 6 2 6 4 . 2 3 8 8 2 1 . . . Energy Gun 15 | 1 2 2 1 1 4 . . . . . . . . 1 1 2 . . . . . Energy Cannon 18 | . . . . 1 1 . 4 3 2 1 . . . . 3 1 1 1 . . . Ballistic Gun 20 | 1 . 3 . . . . 1 1 . 4 4 . 2 1 2 1 . . . . . Ballistic Cannon 8 | . . 1 1 1 1 . . 1 . . . . . . 2 1 . . . . . Launcher 6 | . . . 2 . . . . . . 1 . . . 1 . 1 1 . . . . Special Weapon . | . . . . . . . . . . . . . . . . . . . . . . Impact Weapon 5 | . . . . 1 . . 3 1 . . . . . . . . . . . . . Slashing Weapon 4 | . . 1 . . . . 1 . . . . . . . . 2 . . . . . Piercing Weapon . | . . . . . . . . . . . . . . . . . . . . . . Special Melee Weapon . | . . . . . . . . . . . . . . . . . . . . . . Unidentified Prototypes 59 | . 1 . 1 1 . . 2 2 1 1 2 . 1 10 16 17 . 2 . 2 . Parts Lost 63 | . . 9 5 5 . 3 12 2 2 3 . . 8 3 4 3 . . 3 1 . Power 8 | . . 1 . 1 . . 1 1 . 2 . . 1 . 1 . . . . . . Propulsion 15 | . . 4 2 . . 2 5 . . . . . . 2 . . . . . . . Utility 25 | . . 2 2 2 . . 5 1 2 . . . 4 . 1 2 . . 3 1 . Weapon 15 | . . 2 1 2 . 1 1 . . 1 . . 3 1 2 1 . . . . . Highest Loss Streak 10 | . . 7 2 3 . 1 10 1 1 3 . . 6 2 1 3 . . 3 1 . To Critical Strikes . | . . . . . . . . . . . . . . . . . . . . . . Average Backups 15 | 4 8 13 14 19 19 20 18 20 18 18 17 19 18 17 17 16 4 5 4 4 3 Power . | . 1 . 1 . . . . . . . . 1 1 1 1 . . . . . . Propulsion 3 | 3 4 1 3 7 8 5 5 7 5 6 6 6 6 4 2 . . . . . . Utility 5 | . 1 5 4 3 2 3 5 6 6 5 5 6 5 5 6 6 1 1 1 1 1 Weapon 5 | . 1 4 5 7 9 11 7 5 5 5 5 6 5 6 6 5 1 3 2 2 1 Tool/Special . | . . . . . . . . . . . . . . . . . . . . . . Unused Backups 65 | . 2 . 3 5 . 2 2 . 3 . 8 . . 10 7 9 1 2 1 7 3 Power 11 | . 1 . 1 1 . . 1 . 1 . 1 . . 1 . 3 . . . 1 . Propulsion 21 | . . . 2 2 . 2 1 . . . 4 . . 3 1 1 . . . 5 . Utility 10 | . . . . . . . . . 1 . 1 . . . 4 2 . . 1 . 1 Weapon 20 | . 1 . . 2 . . . . 1 . 2 . . 6 2 2 . 2 . 1 1 Tool/Special 3 | . . . . . . . . . . . . . . . . 1 1 . . . 1 Average Slot Usage (%) 89 | . 100 99 98 96 92 90 95 99 87 89 94 84 82 89 92 81 63 63 57 63 64 Engine 2 | . 14 2 7 7 6 . 2 6 5 1 . . . . . . . . . . . Core 1 | . . 11 1 . . 6 3 4 5 2 . . . . . . . . . . . Reactor 4 | . . . . . . . . . . 3 9 10 9 9 8 8 9 9 7 6 6 Treads 14 | . 28 16 13 22 20 23 7 . 6 22 26 15 15 22 22 15 . . . . . Leg 2 | . . . . . . . 9 10 3 . . . . . . 1 9 9 7 7 6 Wheel 3 | . . 11 3 4 6 1 6 16 9 1 . . . . . . . . . . . Device 19 | . 14 12 17 14 13 19 19 19 18 26 26 26 23 20 21 20 27 24 12 15 21 Storage 5 | . 14 14 9 7 6 9 7 5 5 5 5 5 5 4 4 3 . . . . . Processor 5 | . . . 8 7 6 6 3 2 5 5 5 5 5 7 5 5 . 3 11 17 13 Protection 3 | . . 1 . . 6 2 5 5 3 . . . 1 3 6 6 . . . . . Energy Gun 2 | . 14 11 9 . 18 16 . . . . . . . 2 2 1 . . . . . Energy Cannon 5 | . . . . 3 . . 8 19 15 11 . . . . 2 3 9 9 7 7 6 Ballistic Gun 6 | . 14 7 4 7 1 . . 1 5 8 21 21 20 15 9 2 . . . . . Ballistic Cannon 2 | . . 3 12 15 3 . . . . . . . . . 2 5 . . . . . Impact Weapon 1 | . . . . . . 1 15 . . . . . . . . . . . . . . Slashing Weapon 1 | . . 5 8 3 . . 2 . . . . . . . . . 9 9 6 7 6 Peak Build Rating 310 | 7 20 30 43 49 63 67 80 98 122 131 157 157 160 169 195 240 263 267 281 283 310 Average Rating 131 | 5 7 24 39 46 57 59 72 82 111 124 136 157 154 162 178 194 262 264 267 273 283 On Entrance 124 | . 7 20 28 43 29 63 48 71 98 122 123 157 157 124 166 192 236 263 267 247 281 Avg Prop Armor Cover (%) 11 | . . 14 12 18 17 11 11 6 11 21 . . . 5 3 3 . . . . . Naked Turns . | . . . . . . . . . . . . . . . . . . . . . . Heaviest Build 162 | 11 47 36 69 69 85 84 92 111 114 114 108 108 108 136 162 162 56 56 54 72 79 Greatest Support 240 | 40 40 40 40 60 12 92 82 40 70 178 240 240 240 214 205 225 70 70 70 70 70 Greatest Overweight (x) 7 | . 1 3 5 5 7 6 7 4 3 3 . . 1 . . . . . . 1 1 Average Overweight (x) 1 | . . 2 2 3 5 . 2 2 2 1 . . . . . . . . . . . Largest Inventory Capacity 21 | 8 20 15 20 21 21 21 21 21 21 21 21 21 21 21 21 21 6 6 6 6 6 Average Capacity 18 | 7 11 15 16 20 21 21 21 21 21 21 21 21 21 21 21 19 6 6 6 6 6 Most Carried 21 | 6 12 15 20 21 21 21 21 21 21 21 21 21 21 21 21 21 6 6 6 6 6 Average Carried 17 | 4 8 13 14 19 19 20 18 20 20 20 20 21 20 18 20 19 5 5 5 5 5 Final Capacity 21 | 8 15 15 20 21 21 21 21 21 21 21 21 21 21 21 21 6 6 6 6 6 6 Final Carried 21 | 6 12 14 20 20 21 20 21 21 21 21 21 21 17 21 21 6 6 6 6 4 4 Class Distribution -------------------- 36% | Scavenger-Tank 13% | Scavenger-Gunner 11% | Alien-Sigix 10% | Tank 10% | Mutant 7% | Gunner 3% | Scavenger-Mutant Dominant Class ---------------- Mutant | -10/Materials Mutant | -10/Subcaves Gunner | -8/Materials Gunner | -7/Factory Pyromaniac-Gunner | -6/Factory Mutant | -6/Waste Scavenger-Mutant | -6/Factory Scavenger-Gunner | -5/Factory Tank | -4/Factory Tank | -4/Extension Scavenger-Tank | -4/Cetus Scavenger-Tank | -4/Archives Scavenger-Tank | -4/Hub_04(d) Scavenger-Tank | -3/Research Scavenger-Tank | -3/Quarantine Scavenger-Tank | -3/Section 7 Alien-Sigix | -2/Research Alien-Sigix | -2/Testing Alien-Sigix | -1/Access Alien-Sigix | -1/Command Alien-Sigix | -1/Access_0 Resources | -11 -10 -10 -8 -7 -6 -6 -6 -5 -4 -4 -4 -4 -4 -3 -3 -3 -2 -2 -1 -1 -1 ----------- Run | Yrd Mat Sub Mat Fac Fac Was Fac Fac Fac Ext Cet Arc Hub Res Qua Sec Res Tes Acc Com Ac0 Matter Collected 13218 | 257 45 543 441 597 11 268 792 876 362 1076 358 128 390 1181 2708 2368 30 535 50 134 68 Remotely 155 | . . . 155 . . . . . . . . . . . . . . . . . . Salvage Created 22480 | 29 234 345 673 273 11 517 1800 1169 1181 1011 378 . 1423 426 2253 2911 3605 939 317 2429 556 Parts 958 | 4 12 30 37 13 2 3 76 46 38 42 15 . 64 19 124 143 129 36 10 83 32 Haulers Intercepted 14 | . . . 2 1 . . . 1 1 2 . . . . . 2 2 2 1 . . Recyclers Shooed 7 | . 1 . . 1 1 . 2 2 . . . . . . . . . . . . . Parts Field Recycled . | . . . . . . . . . . . . . . . . . . . . . . Retrieved Matter . | . . . . . . . . . . . . . . . . . . . . . . Parts Self-Destructed 12 | . . 12 . . . . . . . . . . . . . . . . . . . Prevented 1 | . . 1 . . . . . . . . . . . . . . . . . . . Parts Restored . | . . . . . . . . . . . . . . . . . . . . . . Kills | -11 -10 -10 -8 -7 -6 -6 -6 -5 -4 -4 -4 -4 -4 -3 -3 -3 -2 -2 -1 -1 -1 ------- Run | Yrd Mat Sub Mat Fac Fac Was Fac Fac Fac Ext Cet Arc Hub Res Qua Sec Res Tes Acc Com Ac0 Combat Hostiles Destroyed 289 | . 5 11 20 7 . 1 23 18 13 13 5 . 17 5 33 45 37 7 1 22 6 Melee 20 | . . 1 2 . . . 5 . . . . . . . . 2 7 3 . . . Guns 92 | . 5 8 6 1 . . 1 4 2 4 5 . 16 5 23 12 . . . . . Cannons 143 | . . . 8 6 . . 14 11 10 7 . . . . 5 19 30 4 1 22 6 AOE 18 | . . 2 4 . . . . 1 1 1 . . . . . 9 . . . . . Classes Destroyed 26 | 1 1 2 6 3 . 1 3 1 . 1 . . . . . 3 2 . . 2 . Worker 13 | . . . 2 . . . . 1 . . . . 2 . . 2 5 . 1 . . Builder 12 | . . . . . . . 1 1 . 1 . . 2 . . 2 3 1 1 . . Tunneler 4 | 1 . . . . 1 . 2 . . . . . . . . . . . . . . Hauler 14 | . . . 2 1 . . . 1 1 2 . . . . . 2 2 2 1 . . Recycler 10 | . . . . . . . 3 . 2 1 . . . . . 2 1 . . 1 . Mechanic 3 | . . . . . . . . . . . . . . . . 1 2 . . . . Operator 4 | . . . . . . . . 1 . . . . . . 1 . . 1 . 1 . Drone 2 | . . . . 1 . . . . . . . . . . . . . . . 1 . Watcher 17 | . . . 1 . . . 1 3 . 2 . . . 1 1 3 3 1 . 1 . Swarmer 40 | . . 7 6 . . . . 5 . 1 . . . 1 2 12 5 . . 1 . Saboteur 1 | . . . . . . . . . . . . . . . . . 1 . . . . Grunt 80 | . 5 . 11 1 . . 5 1 7 6 . . 6 1 7 8 19 3 . . . Brawler 7 | . . . 1 1 . . . 2 1 . . . . . . . 2 . . . . Duelist 9 | . . . 1 . . . 2 1 . . . . . . . 2 3 . . . . Researcher 3 | . . . . . . . . . . . . . . . . 3 . . . . . Sentry 39 | . . . 1 1 . . 4 2 3 1 . . 2 3 4 5 6 4 . 3 . Specialist 5 | . . . . . . . 5 . . . . . . . . . . . . . . Hunter 19 | . . . . 1 . . 3 . 2 4 . . 5 . 4 . . . . . . Programmer 33 | . . . . 2 . . 4 7 . . . . . . 6 10 . . . 4 . Behemoth 5 | . . . . . . . . . . 1 . . 1 . . . 1 . 1 1 . Compactor 1 | . . . . . . 1 . . . . . . . . . . . . . . . Cetus Guard 5 | . . . . . . . . . . . 5 . . . . . . . . . . Quarantine Guard 10 | . . . . . . . . . . . . . . . 10 . . . . . . M Guard 2 | . . . . . . . . . . . . . . . . . . . . 2 . Enhanced Grunt 2 | . . . . . . . . . . . . . . . . . . . . . 2 Enhanced Sentry 1 | . . . . . . . . . . . . . . . . . . . . . 1 Enhanced Hunter 1 | . . . . . . . . . . . . . . . . . . . . . 1 Lightning 3 | . . . . . . . . . . . . . 3 . . . . . . . . Tracker 2 | . . . . . . . . . . . . . . . . 2 . . . . . Combat Programmer 3 | . . . . . . . . . . . . . . . . 2 . . . 1 . Striker 6 | . . . . . . . . . . . . . . . . 4 . . . 2 . Executioner 3 | . . . . . . . . . . . . . . . . . . . . 3 . Alpha 7 2 | . . . . . . . . . . . . . . . . . . . . 2 . Subdweller 4 | . . 4 . . . . . . . . . . . . . . . . . . . Assembled 1 | . . . . . . . . . . . . . . . . . 1 . . . . Best Kill Streak 31 | 1 2 4 6 2 1 1 3 6 9 4 3 . 9 2 5 16 31 8 4 5 3 Combat Bots Only 18 | . 2 4 6 2 . 1 3 5 8 4 3 . 7 1 5 10 18 7 1 5 3 Max Kills in Single Turn 6 | 1 1 3 3 1 1 1 1 1 1 2 1 . 2 1 2 6 4 4 1 2 1 Gunslinging 1 | . . . . . . . . . . . . . 1 . . . . . . . . Exploded 3 | . . 2 2 . . . . 1 1 1 . . . . . 3 . . . . . Melee 1 | . . 1 1 . . . 1 . . . . . . . . 1 1 1 . . . Uniques/NPCs Destroyed 4 | . . . . . . . . . . . . . . . . . . . . 2 2 MAIN.C Shell (-1/Command) MAIN.C (-1/Command) A8 (-1/Access_0) A5 (-1/Access_0) Combat | -11 -10 -10 -8 -7 -6 -6 -6 -5 -4 -4 -4 -4 -4 -3 -3 -3 -2 -2 -1 -1 -1 -------- Run | Yrd Mat Sub Mat Fac Fac Was Fac Fac Fac Ext Cet Arc Hub Res Qua Sec Res Tes Acc Com Ac0 Hostile Shots Fired 2918 | . 29 58 88 94 . 3 293 59 89 123 35 1 384 19 289 336 197 42 24 331 424 Missed 949 | . 7 15 23 31 . . 92 17 27 40 6 . 82 3 68 85 69 14 7 104 259 Hits 1969 | . 22 43 65 63 . 3 201 42 62 83 29 1 302 16 221 251 128 28 17 227 165 Melee 73 | . . . 2 17 . 3 2 6 . . . . . 1 . 11 . . . 3 28 Projectile 1896 | . 22 43 63 46 . . 199 36 62 83 29 1 302 15 221 240 128 28 17 224 137 AOE 4 | . . . . . . . . . . . . . . 1 . . . . . 3 . Critical Strikes 111 | . 1 . . 2 . 2 11 2 1 3 2 . 15 2 17 12 5 1 2 16 17 Actively Blocked 48 | . . . . . . . . . 1 3 2 . 15 2 17 8 . . . . . Part Disruptions 9 | . . . . . . . 4 . . . . . 3 . 1 1 . . . . . Damage Taken 28705 | . 278 815 909 757 . 141 2861 1005 1234 1175 471 15 4048 507 4500 4066 1435 312 340 2412 1424 Core 3881 | . 39 177 129 97 . . 316 54 64 147 64 . 140 . 274 594 425 81 36 762 482 Absorbed by Shields 5546 | . . . . . . . . . . 27 . . . . 1545 1456 . . . 1565 953 Reduced by Siege Mode 828 | . . . . . . . . . 55 39 5 . 466 . 183 80 . . . . . Redirected to Shielding 27 | . . 27 . . . . . . . . . . . . . . . . . . . Ignored by Resistances 15628 | . . 7 18 72 . 16 251 36 127 624 333 10 1104 62 600 1503 1803 362 211 5746 2743 Regen/Repaired (Parts) 302 | . . . . . . . . 87 . . . . . . . . 39 33 25 110 8 Core Remaining (%) 72 | 100 . 38 82 88 . . 66 95 . . . . 66 . . 35 . 86 . . . Volleys Fired 829 | 2 20 39 43 19 2 9 32 42 33 50 12 8 47 12 130 133 58 4 8 77 49 Largest 4 | 2 2 2 3 4 4 4 4 4 4 4 4 4 4 4 4 4 1 1 1 1 1 Hottest 514 | 60 60 115 122 174 340 340 320 358 341 341 140 140 140 310 251 514 180 180 300 180 180 Shots Fired 1991 | 4 40 63 102 62 8 15 115 146 119 119 48 32 187 45 373 316 59 4 8 77 49 Gun 976 | 4 40 63 53 19 8 8 11 19 32 29 48 32 187 45 259 119 . . . . . Cannon 994 | . . . 46 43 . . 104 127 87 84 . . . . 114 192 59 4 8 77 49 Launcher 21 | . . . 3 . . 7 . . . 6 . . . . . 5 . . . . . Special . | . . . . . . . . . . . . . . . . . . . . . . Kinetic 1002 | 2 20 36 68 54 . 7 11 19 32 29 48 32 187 36 267 154 . . . . . Thermal 715 | 2 20 24 34 8 8 8 104 127 87 61 . . . 9 88 134 . . 1 . . Explosive 11 | . . . . . . . . . . 6 . . . . . 5 . . . . . Electromagnetic 44 | . . 3 . . . . . . . 23 . . . . 18 . . . . . . Slashing 219 | . . . . . . . . . . . . . . . . 23 59 4 7 77 49 Robot Hit Streak 57 | 3 9 26 11 20 7 6 23 18 25 19 18 11 28 16 45 57 18 8 15 30 17 Robot Miss Streak 10 | 1 2 2 4 7 . 1 3 4 3 5 1 1 1 2 5 6 10 4 2 8 6 Penetration Max 2 | . . . . . . . . 2 2 1 1 1 1 1 1 1 1 1 . 1 1 Secondary Targets 18 | . 1 3 . . . . . . . . 3 . 7 . 4 . . . . . . Max Gunslinging Chain 1 | . 1 1 . . . . . . . . 1 . 1 . 1 . . . . . . Shots Hit Robots 1504 | 3 28 52 72 40 5 15 131 104 82 66 41 25 153 30 247 188 76 17 8 72 49 Core Hits 865 | 2 15 23 43 18 1 3 42 34 42 40 21 6 60 12 91 105 95 14 9 130 59 Critical Kills 28 | . . . . . . 1 . 7 2 3 . . 8 1 2 4 . . . . . Critical Parts Destroyed 44 | . . . . . . . 8 4 1 2 2 2 19 . 3 3 . . . . . Critical Strikes 124 | . . 4 4 . . 1 10 11 4 7 2 5 30 2 11 12 4 2 . 12 3 Burn 4 | . . 3 1 . . . . . . . . . . . . . . . . . . Meltdown 6 | . . . . . . . . 2 . . . . . . 1 3 . . . . . Destroy 66 | . . . . . . . . 7 4 6 2 5 30 2 6 4 . . . . . Blast 10 | . . . 3 . . . . . . . . . . . 3 4 . . . . . Corrupt 2 | . . . . . . . . . . 1 . . . . 1 . . . . . . Smash 11 | . . . . . . 1 8 2 . . . . . . . . . . . . . Sever 25 | . . 1 . . . . 2 . . . . . . . . 1 4 2 . 12 3 Melee Attacks 276 | . . 21 9 9 . 3 79 5 . . . . . . . 33 53 27 7 20 10 Impact 60 | . . . . 2 . 3 50 5 . . . . . . . . . . . . . Slashing 216 | . . 21 9 7 . . 29 . . . . . . . . 33 53 27 7 20 10 Piercing . | . . . . . . . . . . . . . . . . . . . . . . Sneak Attacks 19 | . . . 2 . . . 4 1 . . . . . . . 1 6 3 2 . . Combat Hostiles 2 | . . . . . . . . . . . . . . . . . 2 . . . . Follow-up Attacks 19 | . . . . . . . 19 . . . . . . . . . . . . . . Damage Inflicted 86976 | 26 281 1414 2105 953 90 828 4490 3513 3160 3461 1240 646 4405 863 7990 11902 13557 3599 1846 14218 6389 Guns 17897 | 26 278 461 652 303 90 108 50 98 159 249 1240 646 4405 849 5437 2846 . . . . . Cannons 48632 | . . . 716 634 . . 1884 3055 2501 2297 . . . . 2538 4299 8684 915 1022 13851 6236 Explosions 5278 | . . 75 478 . . 446 . 161 500 915 . . . . . 2550 . . . . 153 Melee 15096 | . . 878 259 . . 274 2535 199 . . . . . . . 2207 4873 2680 824 367 . Ramming 73 | . 3 . . 16 . . 21 . . . . . . 14 15 . . 4 . . . Kinetic 19697 | 16 94 197 1490 724 . 446 50 98 159 249 1240 646 4405 708 5470 3705 . . . . . Thermal 15537 | 10 184 312 356 213 90 108 1884 3216 2501 1689 . . . 141 1972 2861 . . . . . Explosive 4118 | . . . . . . . . . 500 915 . . . . . 2550 . . . . 153 Electromagnetic 1168 | . . 27 . . . . . . . 608 . . . . 533 . . . . . . Impact 2023 | . . . . . . 274 1550 199 . . . . . . . . . . . . . Slashing 44360 | . . 878 259 . . . 985 . . . . . . . . 2786 13557 3595 1846 14218 6236 Piercing . | . . . . . . . . . . . . . . . . . . . . . . Highest Corruption 23 | . . . . 1 . 23 23 4 . . . . 7 . 9 14 17 17 1 . 1 Average Corruption 5 | . . . . 1 . 11 3 2 . . . . 4 . 6 8 16 17 1 . 1 Corruption Purged 12 | . . . . . . . 12 . . . . . . . . . . . . . . Corruption Blocked . | . . . . . . . . . . . . . . . . . . . . . . Effects 192 | . . . . 7 . 10 41 20 . . . . 4 . 69 32 8 1 . . . Message Errors 41 | . . . . 2 . 1 7 4 . . . . 1 . 19 5 2 . . . . Matter Fused 46 | . . . . . . 3 10 4 . . . . . . 16 12 . 1 . . . Heat Flow Errors 29 | . . . . 3 . . 7 6 . . . . 1 . 9 2 1 . . . . Energy Discharges 18 | . . . . 2 . 1 2 1 . . . . . . 9 3 . . . . . Parts Fused 2 | . . . . . . 1 . . . . . . . . 1 . . . . . . Data Loss (minor) 23 | . . . . . . 3 7 . . . . . 1 . 6 4 2 . . . . Data Loss (major) 9 | . . . . . . . 3 1 . . . . . . 3 1 1 . . . . Misfires 9 | . . . . . . . 2 3 . . . . . . 2 2 . . . . . Alerts 5 | . . . . . . . 1 1 . . . . . . . 3 . . . . . Misdirections 3 | . . . . . . 1 . . . . . . . . . . 2 . . . . Weapon Failures 7 | . . . . . . . 2 . . . . . 1 . 4 . . . . . . Overload Shots 1 | . . . . . . . . . . . . . . 1 . . . . . . . Overflow Damage 4963 | . . 21 52 64 . 71 560 312 98 83 . . . . . 642 1521 755 482 267 35 Projectiles 672 | . . . . 64 . . 17 127 47 79 . . . . . 107 139 12 . 45 35 Explosions 170 | . . . 16 . . . . 1 51 4 . . . . . 98 . . . . . Melee 4121 | . . 21 36 . . 71 543 184 . . . . . . . 437 1382 743 482 222 . Knockbacks 38 | . . . 12 5 . . 7 1 . . . . . . . 13 . . . . . Impact 8 | . . . . . . . 7 1 . . . . . . . . . . . . . Kinetic 27 | . . . 10 5 . . . . . . . . . . . 12 . . . . . Secondary 3 | . . . 2 . . . . . . . . . . . . 1 . . . . . Self-Inflicted Damage 256 | . . 21 . . . . . 164 71 . . . . . . . . . . . . Shots 5 | . . 1 . . . . . 3 1 . . . . . . . . . . . . Rammed 4 | . 1 . . 1 . . . . . . . . 1 . 1 . . . . . . Targets Rammed 9 | . 1 . . 1 . . 3 . . . . . 1 1 1 . . 1 . . . Kicked 4 | . . . . . . . 3 . . . . . . . . . . 1 . . . Crushed 1 | . . . . . . . . . . . . . . 1 . . . . . . . Highest Temperature 534 | 20 159 12 90 230 264 534 295 359 399 442 154 18 336 243 296 279 97 30 84 72 37 Average Temperature 90 | 12 60 7 29 63 137 260 100 106 157 130 40 7 98 131 56 73 53 18 63 45 37 Received Heat Transfer 3989 | . 177 114 396 66 . . 441 27 222 114 . . 570 75 216 288 504 135 . 461 183 Thermoelectric Energy+ 37 | . . . . . . . . . . . . . . . . 37 . . . . . Effects 13 | . . . . . . 10 . . . . . . . . . 3 . . . . . Shutdowns 1 | . . . . . . 1 . . . . . . . . . . . . . . . Energy Bleed 2 | . . . . . . 2 . . . . . . . . . . . . . . . Interference 10 | . . . . . . 7 . . . . . . . . . 3 . . . . . Siege Activations 28 | . . . . . . . . . 2 2 1 . 3 . 13 7 . . . . . Total Turns 668 | . . . . . . . . . 87 65 15 . 161 . 181 159 . . . . . Longest Duration 99 | . . . . . . . . . 62 34 15 . 99 . 32 34 . . . . . Martial Activations . | . . . . . . . . . . . . . . . . . . . . . . Shielding Activations . | . . . . . . . . . . . . . . . . . . . . . . Robots Disrupted . | . . . . . . . . . . . . . . . . . . . . . . Combat Hostiles . | . . . . . . . . . . . . . . . . . . . . . . Robots Corrupted 10 | . . . . . . . 4 2 . . . . . . 4 . . . . . . Combat Hostiles 7 | . . . . . . . 3 . . . . . . . 4 . . . . . . Parts Fried 27 | . . . . . . . 4 5 . 4 . . . . 14 . . . . . . Impact Corruptions 18 | . . . . . . 1 12 5 . . . . . . . . . . . . . Robots Melted 7 | . . . . . . . 1 2 . . . . . . 1 3 . . . . . Combat Hostiles 7 | . . . . . . . 1 2 . . . . . . 1 3 . . . . . Parts Melted 39 | . 1 1 . 2 . . 12 13 3 . . . . . 5 2 . . . . . Heat Transferred 18342 | 25 425 938 925 400 250 300 3650 3505 1936 1104 . . . 185 2035 2664 . . . . . Parts Sabotaged . | . . . . . . . . . . . . . . . . . . . . . . Parts Stolen 2 | . . . . 2 . . . . . . . . . . . . . . . . . Parts Stripped . | . . . . . . . . . . . . . . . . . . . . . . Power Chain Reactions 2 | . . 1 . . . . . 1 . . . . . . . . . . . . . Alert | -11 -10 -10 -8 -7 -6 -6 -6 -5 -4 -4 -4 -4 -4 -3 -3 -3 -2 -2 -1 -1 -1 ------- Run | Yrd Mat Sub Mat Fac Fac Was Fac Fac Fac Ext Cet Arc Hub Res Qua Sec Res Tes Acc Com Ac0 Maximum Alert Level 5 | . . . 2 . . . 2 2 2 3 2 1 1 2 2 5 5 5 5 5 . Low Security (%) 39 | 100 100 . 27 100 100 100 74 66 41 . . . 71 55 6 . . . . . . Level 1 22 | . . . 56 . . . 23 2 39 41 47 100 28 . 54 30 . . . . . Level 2 20 | . . . 15 . . . 1 30 18 44 52 . . 44 39 12 . . . . . Level 3 1 | . . . . . . . . . . 13 . . . . . 5 . . . 4 . Level 4 8 | . . . . . . . . . . . . . . . . 42 3 . 73 52 . Level 5 2 | . . . . . . . . . . . . . . . . . . 53 . 42 . High Security . | . . . . . . . . . . . . . . . . . . . . . . Max Security 4 | . . . . . . . . . . . . . . . . 9 96 46 26 . . Sterilizations 1 | . . . . 1 . . . . . . . . . . . . . . . . . Peak Influence 3523 | 5 50 . 460 193 12 32 403 548 449 748 640 346 281 659 606 1795 3523 2407 1671 1654 . Initial 1981 | . . . . 193 12 . . 195 263 215 362 230 110 93 305 336 1100 1981 1444 1100 . Average 458 | . 11 . 235 53 . 3 104 211 247 495 457 306 151 281 386 900 2773 2167 1488 1296 . Influence Increases 16132 | 5 160 192 692 265 5 32 837 929 568 1097 448 146 599 1160 1487 2043 1946 466 132 1408 1515 Destroy 0b10 Robot/C 6640 | . 100 160 400 160 . . 480 360 260 520 160 80 340 500 700 1060 740 140 20 460 . Destroy 0b10 Robot/NC 445 | 5 . . 25 5 5 . 40 35 15 60 10 . 25 10 10 65 80 25 15 15 . Destroy Leader 1278 | . 30 . 76 52 . . 162 88 62 74 . . 80 84 162 208 110 16 12 62 . Allied During Kill 618 | . . 2 . 2 . . 2 . 5 189 40 16 8 211 19 59 25 . . 40 . Successful Hack 114 | . . . . 21 . . 7 32 26 14 . . . . 9 5 . . . . . Disable Machine 1095 | . . . 15 15 . . . 75 75 15 . 30 75 15 270 150 120 30 . 135 75 Anti-Garrison Action 300 | . . . . . . . . . . . . . . . 150 . . 150 . . . Destroy Structure 4137 | . . . 43 10 . 32 11 96 80 210 22 20 56 136 152 436 642 75 85 636 1395 Partial Spotted 180 | . . . 15 . . . . . . . . . . . . 30 15 30 . 45 45 Lose Combat Pursuer 345 | . 30 30 . . . . 135 15 45 15 . . 15 . 15 30 . . . 15 . Miscellaneous 980 | . . . 118 . . . . 228 . . 216 . . 204 . . 214 . . . . Influence Decreases 15605 | 5 160 192 265 665 32 32 438 789 666 890 520 406 737 795 1432 1026 816 1582 1053 1148 1956 Entered New Map 8221 | . . . . 234 15 . . 204 276 226 286 346 206 85 238 262 786 1542 963 596 1956 Time Decay 5302 | 5 160 182 225 391 17 22 337 565 350 434 214 60 160 560 674 614 10 40 60 222 . Lost Part 460 | . . 10 40 40 . 10 80 20 20 30 . . 80 20 40 30 . . 30 10 . Lost Ally 921 | . . . . . . . 21 . 20 200 20 . 40 130 30 120 20 . . 320 . Purge Threat 701 | . . . . . . . . . . . . . 251 . 450 . . . . . . Squads Dispatched 138 | . 2 . 5 2 . . 13 5 6 4 . . 6 2 8 29 36 9 7 4 . Investigation 10 | . . . 2 . . . 1 1 2 . . . 1 1 1 . . . 1 . . Extermination 21 | . . . . 2 . . 5 3 1 . . . . 1 3 3 . . . 3 . Reinforcement 31 | . 2 . . . . . 7 1 1 4 . . 5 . 2 3 4 1 . 1 . Assault 66 | . . . . . . . . . . . . . . . 2 19 31 8 6 . . Garrison 8 | . . . 3 . . . . . 2 . . . . . . 3 . . . . . Intercept 2 | . . . . . . . . . . . . . . . . 1 1 . . . . Searches Triggered . | . . . . . . . . . . . . . . . . . . . . . . Construction Impeded 7 | . . . . . . . . 1 . 2 . . 2 . . . 1 1 . . . Haulers Reinforced . | . . . . . . . . . . . . . . . . . . . . . . Active Scanning Responses . | . . . . . . . . . . . . . . . . . . . . . . Cargo Convoy Interrupts 1 | . . . . 1 . . . . . . . . . . . . . . . . . Stealth | -11 -10 -10 -8 -7 -6 -6 -6 -5 -4 -4 -4 -4 -4 -3 -3 -3 -2 -2 -1 -1 -1 --------- Run | Yrd Mat Sub Mat Fac Fac Was Fac Fac Fac Ext Cet Arc Hub Res Qua Sec Res Tes Acc Com Ac0 Distress Signals 58 | . 1 . 3 1 . . . 1 2 5 2 1 1 9 1 10 3 . . 18 . Communications Jammed . | . . . . . . . . . . . . . . . . . . . . . . Distress Signals . | . . . . . . . . . . . . . . . . . . . . . . Times Spotted 710 | . 14 12 27 16 . 7 47 29 24 26 10 8 30 16 41 167 93 15 1 76 51 Peak Tracking Total 14 | . 4 4 5 3 . 4 7 5 7 5 5 1 12 5 5 14 13 6 1 13 9 Tactical Retreats 17 | . 2 1 . . . . 6 1 1 1 . . 1 . 1 2 . . . 1 . Traps | -11 -10 -10 -8 -7 -6 -6 -6 -5 -4 -4 -4 -4 -4 -3 -3 -3 -2 -2 -1 -1 -1 ------- Run | Yrd Mat Sub Mat Fac Fac Was Fac Fac Fac Ext Cet Arc Hub Res Qua Sec Res Tes Acc Com Ac0 Traps Triggered 17 | . . 1 . 1 1 . . 3 2 1 . . 1 . 1 . 2 3 . 1 . Indirectly . | . . . . . . . . . . . . . . . . . . . . . . Trap Hack Attempts . | . . . . . . . . . . . . . . . . . . . . . . Triggered . | . . . . . . . . . . . . . . . . . . . . . . Disarmed . | . . . . . . . . . . . . . . . . . . . . . . Reprogrammed . | . . . . . . . . . . . . . . . . . . . . . . Reused . | . . . . . . . . . . . . . . . . . . . . . . Traps Extracted . | . . . . . . . . . . . . . . . . . . . . . . Installed . | . . . . . . . . . . . . . . . . . . . . . . Triggered . | . . . . . . . . . . . . . . . . . . . . . . Machines | -11 -10 -10 -8 -7 -6 -6 -6 -5 -4 -4 -4 -4 -4 -3 -3 -3 -2 -2 -1 -1 -1 ---------- Run | Yrd Mat Sub Mat Fac Fac Was Fac Fac Fac Ext Cet Arc Hub Res Qua Sec Res Tes Acc Com Ac0 Machines Disabled 83 | . . . 1 1 . . . 5 5 3 . 2 5 1 20 12 8 5 . 9 6 Max in Single Turn 4 | . . . 1 1 . . . 2 4 1 . 2 2 . 1 2 2 2 . 1 1 Garrison Access 6 | . . . . . . . . 1 1 . . . . 1 1 . . 1 1 . . Network Hub 1 | . . . . . . . . . . . . . 1 . . . . . . . . Energy Cycler 3 | . . . . . . . . . . 2 . . . . . . . . 1 . . Machines Repaired . | . . . . . . . . . . . . . . . . . . . . . . Machines Dismantled . | . . . . . . . . . . . . . . . . . . . . . . Machines Sabotaged . | . . . . . . . . . . . . . . . . . . . . . . Overloaded Fab Kills . | . . . . . . . . . . . . . . . . . . . . . . Hacking | -11 -10 -10 -8 -7 -6 -6 -6 -5 -4 -4 -4 -4 -4 -3 -3 -3 -2 -2 -1 -1 -1 --------- Run | Yrd Mat Sub Mat Fac Fac Was Fac Fac Fac Ext Cet Arc Hub Res Qua Sec Res Tes Acc Com Ac0 Machines Accessed 52 | . 1 . 1 5 2 . 6 12 5 1 . . 1 1 9 3 . 2 2 1 . Terminals 28 | . . . 1 2 1 . 3 6 1 1 . . 1 . 7 3 . . 1 1 . Fabricators 4 | . . . . . . . . 2 2 . . . . . . . . . . . . Repair Stations 1 | . . . . . . . . 1 . . . . . . . . . . . . . Recycling Units 7 | . 1 . . 1 1 . 2 2 . . . . . . . . . . . . . Scanalyzers 4 | . . . . 2 . . . . . . . . . . 1 . . 1 . . . Garrison Access 8 | . . . . . . . 1 1 2 . . . . 1 1 . . 1 1 . . Total Hacks 116 | . 3 . 2 14 3 . 13 22 8 3 . . 4 1 24 8 . 6 4 1 . Successful 39 | . 2 . . 4 1 . 5 7 5 1 . . 2 1 7 1 . 1 1 1 . Failed 77 | . 1 . 2 10 2 . 8 15 3 2 . . 2 . 17 7 . 5 3 . . Catastrophic 21 | . . . 1 1 1 . 3 1 3 . . . . . 7 3 . . 1 . . Database Lockouts . | . . . . . . . . . . . . . . . . . . . . . . Manual 40 | . 1 . 2 2 1 . 1 9 1 3 . . . . 14 6 . . . . . Terminals 72 | . . . 2 7 1 . 8 13 1 3 . . 4 . 21 8 . . 3 1 . Fabricators 7 | . . . . . . . . 3 4 . . . . . . . . . . . . Repair Stations 2 | . . . . . . . . 2 . . . . . . . . . . . . . Recycling Units 12 | . 3 . . 3 2 . 2 2 . . . . . . . . . . . . . Scanalyzers 7 | . . . . 4 . . . . . . . . . . 1 . . 2 . . . Garrison Access 16 | . . . . . . . 3 2 3 . . . . 1 2 . . 4 1 . . Terminal Hacks 11 | . . . . . . . 3 1 1 . . . 2 . 3 . . . . 1 . Prototype ID Bank 1 | . . . . . . . 1 . . . . . . . . . . . . . . Open Door 2 | . . . . . . . . . 1 . . . . . . . . . . 1 . Level Access Points 1 | . . . . . . . . 1 . . . . . . . . . . . . . Branch Access Points 1 | . . . . . . . 1 . . . . . . . . . . . . . . Alert Level 1 | . . . . . . . 1 . . . . . . . . . . . . . . Unreport Threat 5 | . . . . . . . . . . . . . 2 . 3 . . . . . . Fabricator Hacks 2 | . . . . . . . . . 2 . . . . . . . . . . . . Network Status 1 | . . . . . . . . . 1 . . . . . . . . . . . . Build 1 | . . . . . . . . . 1 . . . . . . . . . . . . Repair Station Hacks 2 | . . . . . . . . 2 . . . . . . . . . . . . . Scan Component 1 | . . . . . . . . 1 . . . . . . . . . . . . . Repair 1 | . . . . . . . . 1 . . . . . . . . . . . . . Recycling Unit Hacks 8 | . 2 . . 2 1 . 2 1 . . . . . . . . . . . . . Report Inventory 6 | . 1 . . 1 1 . 2 1 . . . . . . . . . . . . . Retrieve Components 2 | . 1 . . 1 . . . . . . . . . . . . . . . . . Scanalyzer 2 | . . . . 1 . . . . . . . . . . . . . 1 . . . Retrieve Study 2 | . . . . 1 . . . . . . . . . . . . . 1 . . . Garrison Access Hacks 4 | . . . . . . . . 1 1 . . . . 1 . . . . 1 . . Seal Access 4 | . . . . . . . . 1 1 . . . . 1 . . . . 1 . . Unauthorized Hacks 10 | . . . . 1 . . . 2 1 1 . . . . 4 1 . . . . . Terminals 9 | . . . . 1 . . . 2 . 1 . . . . 4 1 . . . . . Assimilate 1 | . . . . . . . . . . . . . . . 1 . . . . . . Botnet 8 | . . . . 1 . . . 2 . 1 . . . . 3 1 . . . . . Fabricators 1 | . . . . . . . . . 1 . . . . . . . . . . . . Fabnet 1 | . . . . . . . . . 1 . . . . . . . . . . . . Repair Stations . | . . . . . . . . . . . . . . . . . . . . . . Recycling Units . | . . . . . . . . . . . . . . . . . . . . . . Scanalyzers . | . . . . . . . . . . . . . . . . . . . . . . Garrison Access . | . . . . . . . . . . . . . . . . . . . . . . Data Cores Recovered 2 | . . . . . . . . 1 . . . . . . . . . 1 . . . Used . | . . . . . . . . . . . . . . . . . . . . . . Hacking Detections 40 | . 1 . 1 5 2 . 5 10 2 1 . . 1 . 7 3 . 1 1 . . Full Trace Events 5 | . . . 1 . . . 1 1 1 . . . . . . . . . 1 . . Feedback Events 1 | . . . . . . . . . 1 . . . . . . . . . . . . Hackware Fried 1 | . . . . . . . . . 1 . . . . . . . . . . . . Feedback Blocked . | . . . . . . . . . . . . . . . . . . . . . . Robot Schematics Acquired 1 | . . . . . . . . . . . . . . . . 1 . . . . . Robots Built . | . . . . . . . . . . . . . . . . . . . . . . Authchips . | . . . . . . . . . . . . . . . . . . . . . . Time . | . . . . . . . . . . . . . . . . . . . . . . Total Robot Build Rating . | . . . . . . . . . . . . . . . . . . . . . . Part Schematics Acquired 8 | . . . . . . . . . . . . . . . . 8 . . . . . Parts Built 2 | . . . . . . . . . 2 . . . . . . . . . . . . Authchips . | . . . . . . . . . . . . . . . . . . . . . . Time 69 | . . . . . . . . . 69 . . . . . . . . . . . . Total Part Build Rating 18 | . . . . . . . . . 18 . . . . . . . . . . . . Part Studies Acquired 2 | . . . . 1 . . . . . . . . . . . . . 1 . . . Parts Repaired 1 | . . . . . . . . 1 . . . . . . . . . . . . . Time 32 | . . . . . . . . 32 . . . . . . . . . . . . . Parts Recycled . | . . . . . . . . . . . . . . . . . . . . . . Recycled Matter . | . . . . . . . . . . . . . . . . . . . . . . Retrieved Matter . | . . . . . . . . . . . . . . . . . . . . . . Retrieved Components 10 | . 7 . . 3 . . . . . . . . . . . . . . . . . Parts Scanalyzed . | . . . . . . . . . . . . . . . . . . . . . . Part Schematics Acquired . | . . . . . . . . . . . . . . . . . . . . . . Parts Damaged . | . . . . . . . . . . . . . . . . . . . . . . Bothacking | -11 -10 -10 -8 -7 -6 -6 -6 -5 -4 -4 -4 -4 -4 -3 -3 -3 -2 -2 -1 -1 -1 ------------ Run | Yrd Mat Sub Mat Fac Fac Was Fac Fac Fac Ext Cet Arc Hub Res Qua Sec Res Tes Acc Com Ac0 Used RIF Installer . | . . . . . . . . . . . . . . . . . . . . . . Robots Hacked 11 | . . . . . . . . . . . . . . 8 . 2 1 . . . . Non-combat . | . . . . . . . . . . . . . . . . . . . . . . Combat 11 | . . . . . . . . . . . . . . 8 . 2 1 . . . . Robot Hacks Applied . | . . . . . . . . . . . . . . . . . . . . . . Relay Couplers Released 10 | . . . . . . . . 3 . . . . . . 2 4 . 1 . . . Machine Destruction 3 | . . . . . . . . . . . . . . . 2 . . 1 . . . Programmers 7 | . . . . . . . . 3 . . . . . . . 4 . . . . . Fabnet Peak Effective % 3 | . . . . . . . . . . . . . . 3 3 3 1 1 . . . Autooverrided 11 | . . . . . . . . . . . . . . 8 . 2 1 . . . . Robots Rewired 7 | . . . . . . . . . . 7 . . . . . . . . . . . Allies Hacked 4 | . . . . . . . . . . . . . . 2 2 . . . . . . Hacks Repelled . | . . . . . . . . . . . . . . . . . . . . . . Allies | -11 -10 -10 -8 -7 -6 -6 -6 -5 -4 -4 -4 -4 -4 -3 -3 -3 -2 -2 -1 -1 -1 -------- Run | Yrd Mat Sub Mat Fac Fac Was Fac Fac Fac Ext Cet Arc Hub Res Qua Sec Res Tes Acc Com Ac0 Total Allies 131 | . . 1 . 1 . . 3 . 1 13 . . . 14 3 7 40 . 8 40 . Largest Group 8 | . . 1 . 1 . . 3 . 1 6 3 2 2 7 2 4 7 . 5 8 . Highest-Rated Group 503 | . . 90 . 142 . . 129 . 47 280 136 105 105 503 131 200 101 . 71 219 . Highest-Rated Ally 219 | . . 90 . 142 . . 43 . 47 159 56 56 56 82 75 99 40 . 15 219 . Total Orders 4 | . . . . . . . . . . . 2 . . . 2 . . . . . . STAY 2 | . . . . . . . . . . . 1 . . . 1 . . . . . . FOLLOW 2 | . . . . . . . . . . . 1 . . . 1 . . . . . . Ally Attacks 341 | . . 5 . 1 . . 8 . 3 103 19 19 3 90 13 42 2 . . 33 . Total Damage 13033 | . . 41 . 85 . . 293 . 95 3917 292 293 99 4858 492 1521 23 . . 1024 . Kills 62 | . . 1 . 1 . . 1 . . 19 5 4 1 21 2 5 . . . 2 . Allies Corrupted 2 | . . . . . . . . . . . . . . . . 1 . . . 1 . Allies Melted . | . . . . . . . . . . . . . . . . . . . . . . X0-1V1 Amusement Gains 545 | . 12 30 25 30 . . 35 40 . 30 . . 30 20 35 65 45 51 57 30 10 Average Entertainment 55 | . 12 28 36 41 27 27 50 42 48 60 31 18 24 44 36 86 98 67 57 84 51 Good Acts 178 | . . 5 4 3 1 5 18 8 7 14 2 . 3 3 16 28 13 7 6 14 21 Bad Acts 90 | . . 5 4 4 1 3 2 6 4 . 3 . 3 12 14 2 14 1 . 7 5 Intel | -11 -10 -10 -8 -7 -6 -6 -6 -5 -4 -4 -4 -4 -4 -3 -3 -3 -2 -2 -1 -1 -1 ------- Run | Yrd Mat Sub Mat Fac Fac Was Fac Fac Fac Ext Cet Arc Hub Res Qua Sec Res Tes Acc Com Ac0 Active Infowar (turns) 8563 | 8 655 . 44 . 234 257 1126 . . . . . . 1661 2633 1547 . . 2 396 . Optics 5506 | . . . . . . . . . . . . . . 930 2633 1547 . . . 396 . Sensors 4 | . . . . . . . . . . . . . . . 2 . . . 2 . . Terrain 1237 | . . . . . 229 117 . . . . . . . 731 160 . . . . . . Traps 568 | . . . 44 . . . 524 . . . . . . . . . . . . . . Seismic 2259 | 8 655 . . . 234 236 1126 . . . . . . . . . . . . . . Robot Analysis Total . | . . . . . . . . . . . . . . . . . . . . . . Derelict Logs Recovered 1 | . . 1 . . . . . . . . . . . . . . . . . . . Drone Launches . | . . . . . . . . . . . . . . . . . . . . . . Drone Recoveries . | . . . . . . . . . . . . . . . . . . . . . . Exploration | -11 -10 -10 -8 -7 -6 -6 -6 -5 -4 -4 -4 -4 -4 -3 -3 -3 -2 -2 -1 -1 -1 ------------- Run | Yrd Mat Sub Mat Fac Fac Was Fac Fac Fac Ext Cet Arc Hub Res Qua Sec Res Tes Acc Com Ac0 Turns Passed 19863 | 84 659 1066 608 1169 541 257 1908 1688 783 1060 458 132 326 2167 2633 2244 590 169 176 755 390 Spaces Moved 12507 | 43 295 661 216 549 280 132 882 1079 433 462 205 60 69 1215 1172 1282 1021 318 331 1087 715 Core 7 | 7 . . . . . . . . . . . . . . . . . . . . . Treads 4825 | 36 295 92 91 162 . 115 105 . 1 303 205 60 69 1215 1172 904 . . . . . Legs 4039 | . . . . . . . 197 . . . . . . . . 374 1021 318 331 1083 715 Wheels 3628 | . . 569 125 387 280 17 580 1079 432 159 . . . . . . . . . . . Hover . | . . . . . . . . . . . . . . . . . . . . . . Flight . | . . . . . . . . . . . . . . . . . . . . . . Fastest Speed 30 | 50 160 110 125 150 165 155 125 116 125 145 160 160 160 160 160 30 30 30 30 30 30 Average Speed 117 | 142 180 129 182 187 179 158 159 127 127 160 164 160 162 162 163 117 30 30 30 32 30 Slowest Speed 330 | 160 240 160 330 245 195 180 240 145 240 168 168 160 240 168 167 165 30 30 30 90 90 Overloaded Moves . | . . . . . . . . . . . . . . . . . . . . . . Propulsion Burnouts . | . . . . . . . . . . . . . . . . . . . . . . Robots Hopped . | . . . . . . . . . . . . . . . . . . . . . . Potential Cave-ins 57 | . . . . . . 3 2 . . . . . . . 2 6 3 . 27 14 . Cave-ins Triggered 2 | . . . . . . . . . . . . . . . . 1 . . 1 . . Teleports 189 | . . . . . . . . . . . . . . . . 51 41 12 12 45 28 Spacefolds 3 | . . . . . . . . . . . . . . . . 2 . . . 1 . Exploration Rate (%) 40 | 3 45 38 21 18 6 69 23 34 12 62 68 66 14 42 95 86 43 53 13 47 43 Regions Visited 21 Branch Regions 10 Pre-discovered Areas 1 | . . 1 . . . . . . . . . . . . . . . . . . . Known Exits Taken 7 | . . . . . . . 1 1 . 1 1 . . . . 1 1 1 . . . Unknown Exits Taken 12 | 1 1 1 1 1 . . . . 1 . . 1 1 1 1 . . . 1 1 . Scrap Searched 5 | . . 5 . . . . . . . . . . . . . . . . . . . Spaces Dug 236 | . . . 1 8 . . 10 2 . 2 . . . . 20 52 47 17 25 46 6 Terrain Destroyed 1735 | . . 1 46 9 . 46 10 46 43 55 2 8 36 7 88 150 275 36 59 391 427 Melee 65 | . . . 1 8 . . 8 2 . . . . . . . 7 16 8 4 5 6 Projectile 1441 | . . . 4 1 . . 2 15 18 11 2 8 36 7 88 103 259 28 55 386 418 AOE 229 | . . 1 41 . . 46 . 29 25 44 . . . . . 40 . . . . 3 Terrain Rammed . | . . . . . . . . . . . . . . . . . . . . . . Walls Destroyed . | . . . . . . . . . . . . . . . . . . . . . . Machines Disabled . | . . . . . . . . . . . . . . . . . . . . . . Actions | -11 -10 -10 -8 -7 -6 -6 -6 -5 -4 -4 -4 -4 -4 -3 -3 -3 -2 -2 -1 -1 -1 --------- Run | Yrd Mat Sub Mat Fac Fac Was Fac Fac Fac Ext Cet Arc Hub Res Qua Sec Res Tes Acc Com Ac0 Total 15979 | 59 385 790 336 632 315 161 1211 1285 592 695 307 76 164 1375 1643 1791 1220 374 392 1364 812 Wait 1339 | 1 52 32 12 21 11 3 118 100 85 68 41 9 42 52 164 226 81 15 32 142 32 Move 12481 | 42 294 660 215 548 280 131 881 1078 432 461 204 59 69 1214 1171 1278 1020 317 329 1083 715 Hop . | . . . . . . . . . . . . . . . . . . . . . . Pick Up 199 | 7 7 11 20 12 1 3 23 9 11 5 15 . . 25 21 15 2 2 1 7 2 Fast Attach 178 | 6 1 4 5 4 6 3 23 9 4 3 3 . 1 14 37 32 1 3 7 12 . Attach 116 | 1 . 10 8 5 3 1 24 6 5 7 3 . 4 11 11 12 2 . . 2 1 Detach 78 | . 1 4 2 2 4 . 19 2 1 3 . . . 8 12 14 1 . 1 4 . Swap 142 | . 4 6 10 2 4 5 11 11 5 5 7 . 1 15 39 11 . . . 5 1 Drop 267 | . 5 3 12 9 4 3 22 23 15 7 22 . . 23 56 36 2 5 6 12 2 Fire 829 | 2 20 39 43 19 2 9 32 42 33 50 12 8 47 12 130 133 58 4 8 77 49 Melee 252 | . . 21 9 9 . 3 55 5 . . . . . . . 33 53 27 7 20 10 Ram . | . . . . . . . . . . . . . . . . . . . . . . Kick 4 | . . . . . . . 3 . . . . . . . . . . 1 . . . Crush 4 | . 1 . . 1 . . . . . . . . . 1 1 . . . . . . Escape Stasis 10 | . . . . . . . . . . 8 . . . . . 1 . . 1 . . Rewire 80 | . . . . . . . . . 1 78 . . . . 1 . . . . . . Trap . | . . . . . . . . . . . . . . . . . . . . . . Miscellaneous . | . . . . . . . . . . . . . . . . . . . . . . Route ------- -11/Scrapyard -10/Materials (discovered 2 exits: [*Mat] / [*Sub]) -10/Subcaves -8/Materials -7/Factory -6/Factory -6/Waste -6/Factory (discovered 3 exits: *Fac / Low x2) -5/Factory (discovered 4 exits: *Fac x4) -4/Factory -4/Extension (discovered 3 exits: *Res x2 / *Cet) -4/Cetus (discovered 2 exits: *Res / *Arc) -4/Archives (discovered 2 exits: *Hub x2) -4/Hub_04(d) -3/Research (discovered 3 exits: *Res x2 / *Qua) -3/Quarantine (discovered 3 exits: *Res / *Sec / [*Frg]) -3/Section 7 -2/Research (discovered 3 exits: Acc x2 / *Tes) -2/Testing -1/Access -1/Command (discovered 3 exits: *Sur x2 / [*Ac0]) -1/Access_0 (discovered 1 exit: Sur) History --------- Turn | Location | Event 10 | -11/Scrapyard | Discovered new exit (range 15) 85 | -11/Scrapyard | Entered Materials 302 | -10/Materials | Build established: Mutant 500 | -10/Materials | Discovered new exit (range 15) 729 | -10/Materials | Discovered new exit (range 7) 740 | -10/Materials | Prayed at D.C.S.S. Altar Unit 744 | -10/Materials | Entered Subcaves 745 | -10/Subcaves | Approached by a straggling Scientist 914 | -10/Subcaves | X0-1V1 tapped a No Entrance sign 955 | -10/Subcaves | Core integrity fell below 50% 962 | -10/Subcaves | Core integrity fell below 20% 985 | -10/Subcaves | Lost 7 parts (1p3n2u1w) 1179 | -10/Subcaves | Shifting Twisted Machinery released Sub. Power Source 1223 | -10/Subcaves | Shifting Twisted Machinery released Sub. Laser 1353 | -10/Subcaves | Shifting Twisted Machinery released Mak. Axe 1369 | -10/Subcaves | Shifting Twisted Machinery released Mak. Shrapnel Gun 1388 | -10/Subcaves | KI resistance permanently improved by X0-1V1 (+10%; -100 max core) 1443 | -10/Subcaves | Learned location of Storage (-7) 1607 | -10/Subcaves | Core integrity restored by X0-1V1 (+24) 1612 | -10/Subcaves | X0-1V1 sent allied H-61 Shepherd (x1) 1630 | -10/Subcaves | Discovered new exit (range 11) 1810 | -10/Subcaves | Entered Materials 1810 | -8/Materials | Evolved 4 slots: Utility x2, Weapon x2 1964 | -8/Materials | Garrison activated, responded to threat 1974 | -8/Materials | X0-1V1 added 0b10 threat records associated with you (minor) 2092 | -8/Materials | X0-1V1 downgraded hostiles (x3) 2114 | -8/Materials | Build established: Gunner 2147 | -8/Materials | X0-1V1 activates XOMVISION 2183 | -8/Materials | Core integrity permanently improved by X0-1V1 (+300) 2380 | -8/Materials | Discovered new exit (range 6) 2418 | -8/Materials | Entered Factory 2418 | -7/Factory | Evolved 2 slots: Propulsion x2 2436 | -7/Factory | Arm. Treads reconfigured into Item Mimic 2829 | -7/Factory | Inventory capacity permanently improved by X0-1V1 (+1; -100 max core) 3227 | -7/Factory | Cargo convoy interrupted 3362 | -7/Factory | X0-1V1 enhanced Transport squad support 3450 | -7/Factory | X0-1V1 made a cryptic comment about sterilization and BL-4Z3 3500 | -7/Factory | X0-1V1 sent allied H-71 Marshal (x1) 3507 | -7/Factory | Build established: Scavenger-Gunner 3551 | -7/Factory | Sterilization system engaged 3551 | -7/Factory | Non-combat units ordered to evacuate 3576 | -7/Factory | Discovered new exit (range 4) 3576 | -7/Factory | X0-1V1 sent you into danger 3587 | -7/Factory | Entered another Factory area 3587 | -6/Factory | Evolved 2 slots: Utility x2 3614 | -6/Factory | Lost 3 parts (2u1w) 3695 | -6/Factory | X0-1V1 put everyone to sleep 4034 | -6/Factory | Build established: Pyromaniac-Gunner 4128 | -6/Factory | Sucked down chute 4128 | -6/Factory | Entered Waste 4143 | -6/Waste | EMP discharged 4157 | -6/Waste | Spotted C-40 Crusher 4229 | -6/Waste | Spotted C-40 Crusher 4235 | -6/Waste | Spotted C-40 Crusher 4243 | -6/Waste | EMP discharged 4243 | -6/Waste | System corruption reached 10% 4264 | -6/Waste | Spotted C-40 Crusher 4266 | -6/Waste | Crushed by Compactor (1 part destroyed, 2 dropped) 4297 | -6/Waste | Spotted C-40 Crusher 4301 | -6/Waste | Weapon slot count temporarily expanded by X0-1V1 (+1) 4310 | -6/Waste | Crushed by Compactor (1 part destroyed, 1 dropped) 4337 | -6/Waste | Destroyed C-40 Crusher 4343 | -6/Waste | EMP discharged 4349 | -6/Waste | Spotted C-40 Crusher 4362 | -6/Waste | Crushed by Compactor (1 part destroyed, 1 dropped) 4370 | -6/Waste | Discovered new exit (range 10) 4385 | -6/Waste | Entered Factory 4684 | -6/Factory | Build established: Scavenger-Mutant 4818 | -6/Factory | Identified exit to Lower Caves 4962 | -6/Factory | Weapon slot count reverted to normal (-1) 5260 | -6/Factory | X0-1V1 whisked you away to safety 5318 | -6/Factory | Build established: Scavenger-Gladiator 5379 | -6/Factory | X0-1V1 sent you to a vault 5465 | -6/Factory | Lost 3 allies 5546 | -6/Factory | Lost 10 parts (1p3n5u1w) 6075 | -6/Factory | Identified exit to Factory 6075 | -6/Factory | X0-1V1 revealed exit location to -5/Factory 6293 | -6/Factory | Entered another Factory area 6293 | -5/Factory | Evolved 2 slots: Power x1, Propulsion x1 6315 | -5/Factory | Build established: Scavenger-Tank 6716 | -5/Factory | X0-1V1 activates XOMVISION 6978 | -5/Factory | Identified exit to Factory 7144 | -5/Factory | X0-1V1 redirected Transport squads to designated parking area 7280 | -5/Factory | X0-1V1 added 0b10 threat records associated with you (minor) 7311 | -5/Factory | Build established: Scavenger-Gunner 7423 | -5/Factory | X0-1V1 added 0b10 threat records associated with you (minor) 7492 | -5/Factory | X0-1V1 tapped a No Entrance sign 7672 | -5/Factory | Found Prototype Launcher 7713 | -5/Factory | Repaired Arm. Wheel 7920 | -5/Factory | X0-1V1 foreshadows a heat wave 7981 | -5/Factory | Entered another Factory area 7981 | -4/Factory | Evolved 2 slots: Propulsion x1, Utility x1 8127 | -4/Factory | Fabricated Enh. Nova Cannon (x2) 8210 | -4/Factory | Build established: Tank 8296 | -4/Factory | X0-1V1 enhanced Transport squad support 8329 | -4/Factory | Allied Derelicts emerged from ambush trap array 8471 | -4/Factory | X0-1V1 whisked you away to safety 8474 | -4/Factory | Adv. Hacking Suite fried by hacking feedback 8566 | -4/Factory | Garrison activated, responded to threat 8578 | -4/Factory | X0-1V1 turns hostiles against one another 8643 | -4/Factory | Destroyed 8 combat bots 8723 | -4/Factory | Discovered new exit (range 6) 8764 | -4/Factory | Entered Extension 8770 | -4/Extension | X0-1V1 dreamt of freedom 8775 | -4/Extension | Rescued a captive Derelict 8791 | -4/Extension | Rescued a captive Derelict 8792 | -4/Extension | Rescued a captive Derelict 8792 | -4/Extension | Rescued a captive Derelict 8796 | -4/Extension | Rescued a captive Derelict 8797 | -4/Extension | Rescued a captive Derelict 8820 | -4/Extension | Rescued a captive Derelict 8828 | -4/Extension | Rescued A7 8891 | -4/Extension | X0-1V1 activates XOMVISION 9175 | -4/Extension | Extracted ID and sensor layout for unrecognized location from A7's data core 9183 | -4/Extension | Identified Smartbomb Launcher 9208 | -4/Extension | Lost 3 allies 9218 | -4/Extension | X0-1V1 sent allied Martyr (x5) 9277 | -4/Extension | Spotted B-86 Titan 9284 | -4/Extension | Spotted B-86 Titan 9290 | -4/Extension | Allies destroyed B-86 Titan 9296 | -4/Extension | Discovered new exit (range 19) 9327 | -4/Extension | Lost 4 allies 9337 | -4/Extension | Destroyed B-86 Titan 9352 | -4/Extension | Lost 3 parts (2p1w) 9607 | -4/Extension | Identified exit to Cetus 9607 | -4/Extension | X0-1V1 revealed exit location to -4/Cetus 9771 | -4/Extension | Discovered new exit (range 21) 9824 | -4/Extension | Entered Cetus 9824 | -4/Cetus | Accompanied by 3 allies 9831 | -4/Cetus | Identified exit to Archives 9831 | -4/Cetus | X0-1V1 revealed exit location to -4/Archives 9841 | -4/Cetus | Spotted Cetus Guard 9843 | -4/Cetus | Spotted Cetus Guard 9844 | -4/Cetus | Spotted Cetus Guard 9852 | -4/Cetus | Destroyed Cetus Guard 9852 | -4/Cetus | Spotted Cetus Guard 9859 | -4/Cetus | Destroyed Cetus Guard 9863 | -4/Cetus | Destroyed Cetus Guard 9863 | -4/Cetus | Allies destroyed Cetus Guard 9973 | -4/Cetus | X0-1V1 activates XOMVISION 10103 | -4/Cetus | Spotted Cetus Guard 10103 | -4/Cetus | Spotted Cetus Guard 10105 | -4/Cetus | Spotted Cetus Guard 10106 | -4/Cetus | Spotted Cetus Guard 10112 | -4/Cetus | Destroyed Cetus Guard 10118 | -4/Cetus | Allies destroyed Cetus Guard 10121 | -4/Cetus | Allies destroyed Cetus Guard 10122 | -4/Cetus | Destroyed Cetus Guard 10123 | -4/Cetus | X0-1V1 added 0b10 threat records associated with you (considerable) 10140 | -4/Cetus | Discovered new exit (range 15) 10152 | -4/Cetus | Met Revision 17 10210 | -4/Cetus | Build established: Scavenger-Tank 10230 | -4/Cetus | X0-1V1 sent someone to fix up the mess you leave 10282 | -4/Cetus | Entered Archives 10282 | -4/Archives | Accompanied by 2 allies 10364 | -4/Archives | Unable to access archive contents 10369 | -4/Archives | Discovered new exit (range 15) 10383 | -4/Archives | Discovered new exit (range 15) 10414 | -4/Archives | Entered Hub_04(d) 10414 | -4/Hub_04(d) | Accompanied by 2 allies 10470 | -4/Hub_04(d) | Spotted B-86 Titan 10493 | -4/Hub_04(d) | Destroyed B-86 Titan 10561 | -4/Hub_04(d) | Destroyed 7 combat bots 10597 | -4/Hub_04(d) | X0-1V1 destroyed Network Hub 10597 | -4/Hub_04(d) | Network Hub disabled 10606 | -4/Hub_04(d) | Spotted Lightning 10612 | -4/Hub_04(d) | Spotted Lightning 10613 | -4/Hub_04(d) | Spotted Lightning 10623 | -4/Hub_04(d) | Destroyed Lightning 10637 | -4/Hub_04(d) | Destroyed Lightning 10659 | -4/Hub_04(d) | Discovered new exit (range 11) 10705 | -4/Hub_04(d) | Destroyed Lightning 10740 | -4/Hub_04(d) | Entered Research 10740 | -3/Research | Evolved 2 slots: Utility x2 10768 | -3/Research | Lost 6 parts (1p2u3w) 10936 | -3/Research | X0-1V1 sent you to a vault 10940 | -3/Research | Revision forces began assault on 0b10 10943 | -3/Research | Local machine network offline 10964 | -3/Research | Master 8d assimilated hostile G-67 Veteran 11033 | -3/Research | Met up with Revision 17++ 11156 | -3/Research | Found Prototype Processor 11156 | -3/Research | Identified Exp. Signal Interpreter 11162 | -3/Research | Found Exp. Signal Interpreter 11440 | -3/Research | Research terminal network offline 11449 | -3/Research | Discovered new exit (range 15) 11475 | -3/Research | Identified exit to Research 11519 | -3/Research | Found Prototype Launcher 11520 | -3/Research | Identified Hellfire Missile Launcher 11785 | -3/Research | Lost 3 allies 11877 | -3/Research | Spotted Striker 11878 | -3/Research | Spotted Executioner 11885 | -3/Research | Allies destroyed Executioner 11910 | -3/Research | Lost 4 allies 11981 | -3/Research | Found Prototype Device 11981 | -3/Research | Identified Adv. Kinecellerator 12018 | -3/Research | X0-1V1 added 0b10 threat records associated with you (considerable) 12048 | -3/Research | Found Adv. Kinecellerator 12255 | -3/Research | Discovered exit to Research (range 15) 12324 | -3/Research | Build established: Scavenger-Gunner 12411 | -3/Research | X0-1V1 activates XOMVISION 12842 | -3/Research | Discovered new exit (range 22) 12896 | -3/Research | X0-1V1 announced a LAN party 12907 | -3/Research | Entered Quarantine 12907 | -3/Quarantine | Accompanied by 1 ally 12911 | -3/Quarantine | Cryocooling Duct disabled 12926 | -3/Quarantine | Ambient heat levels rising (+20) 12926 | -3/Quarantine | Non-combat units ordered to evacuate 12969 | -3/Quarantine | Master 8d assimilated hostile O-16 Technician 13079 | -3/Quarantine | Master 8d assimilated hostile H-77 Assassin 13149 | -3/Quarantine | Spotted Alpha 7 13174 | -3/Quarantine | X0-1V1 upgraded ally (x1) 13205 | -3/Quarantine | Allies destroyed Alpha 7 13258 | -3/Quarantine | Found Alien Artifact 13297 | -3/Quarantine | P-80 Master assimilated allied Terminator 8a 13391 | -3/Quarantine | Found Alien Impact Weapon 13566 | -3/Quarantine | Found Alien Artifact 13614 | -3/Quarantine | Identified Phase Redirector 13832 | -3/Quarantine | Build established: Scavenger-Tank 13844 | -3/Quarantine | Found Alien Artifact 13865 | -3/Quarantine | X0-1V1 vaporized surrounding terrain (radius 21) 13958 | -3/Quarantine | Cryocooling Duct disabled 13973 | -3/Quarantine | Ambient heat levels rising (+20) 13973 | -3/Quarantine | Combat units ordered to evacuate 14024 | -3/Quarantine | Found Gamma Bomb Array 14073 | -3/Quarantine | Quarantine Guard activated 14109 | -3/Quarantine | Spotted Quarantine Guard 14114 | -3/Quarantine | Spotted Quarantine Guard 14114 | -3/Quarantine | Spotted Quarantine Guard 14122 | -3/Quarantine | Destroyed Quarantine Guard 14137 | -3/Quarantine | Destroyed Quarantine Guard 14146 | -3/Quarantine | Destroyed Quarantine Guard 14184 | -3/Quarantine | Found Prototype Device 14184 | -3/Quarantine | Identified Exp. Thermal Shield 14249 | -3/Quarantine | Found Alien Slashing Weapon 14286 | -3/Quarantine | Spotted Quarantine Guard 14318 | -3/Quarantine | Destroyed Quarantine Guard 14371 | -3/Quarantine | Spotted Quarantine Guard 14406 | -3/Quarantine | Destroyed Quarantine Guard 14464 | -3/Quarantine | Found Alien Reactor 14478 | -3/Quarantine | Identified Matter Drive 14518 | -3/Quarantine | Found Alien Energy Cannon 14603 | -3/Quarantine | X0-1V1 caused items to flee you 14653 | -3/Quarantine | Discovered exit to Research (range 10) 14653 | -3/Quarantine | Spotted Quarantine Guard 14689 | -3/Quarantine | Destroyed Quarantine Guard 14853 | -3/Quarantine | X0-1V1 vaporized surrounding terrain (radius 17) 14853 | -3/Quarantine | Spotted Quarantine Guard 14883 | -3/Quarantine | Items stopped fleeing you 14915 | -3/Quarantine | Destroyed Quarantine Guard 14975 | -3/Quarantine | Spotted Quarantine Guard 14980 | -3/Quarantine | Found Prototype Processor 14980 | -3/Quarantine | Identified Spectral Analyzer 15012 | -3/Quarantine | Destroyed Quarantine Guard 15054 | -3/Quarantine | X0-1V1 put everyone to sleep 15131 | -3/Quarantine | X0-1V1 sent you to a vault 15155 | -3/Quarantine | Found Alien Artifact 15155 | -3/Quarantine | Identified Terrabomb (x2) 15155 | -3/Quarantine | Used Terrabomb 15187 | -3/Quarantine | Found Prototype Device 15187 | -3/Quarantine | Identified Femtoactuators 15191 | -3/Quarantine | Found Femtoactuators 15206 | -3/Quarantine | Found Prototype Device 15206 | -3/Quarantine | Identified Thermal Barrier 15210 | -3/Quarantine | Found Prototype Device 15210 | -3/Quarantine | Identified Exp. Phase Shifter 15218 | -3/Quarantine | Found Prototype Device 15218 | -3/Quarantine | Identified Exp. Sensor Array 15324 | -3/Quarantine | Spotted Fortress 15436 | -3/Quarantine | Discovered new exit (range 6) 15436 | -3/Quarantine | Discovered new exit (range 7) 15436 | -3/Quarantine | Spotted Quarantine Guard 15436 | -3/Quarantine | Spotted Quarantine Guard 15454 | -3/Quarantine | Destroyed Quarantine Guard 15464 | -3/Quarantine | Destroyed Quarantine Guard 15540 | -3/Quarantine | Entered Section 7 15557 | -3/Section 7 | Spotted B-86 Titan 15645 | -3/Section 7 | X0-1V1 activates XOMVISION 15906 | -3/Section 7 | Spotted S7 Guard 15951 | -3/Section 7 | Identified Sigix Broadsword 16092 | -3/Section 7 | Found Alien Artifact 16092 | -3/Section 7 | Identified Navigation Efficiency Matrix 16092 | -3/Section 7 | Installed Navigation Efficiency Matrix, process failed with unexpected side effects 16151 | -3/Section 7 | Scanned by Researcher 16282 | -3/Section 7 | Discovered exit to Research (range 10) 16297 | -3/Section 7 | Spotted S7 Guard 16300 | -3/Section 7 | Intercept squad dispatched 16302 | -3/Section 7 | Spotted Tracker 16303 | -3/Section 7 | Spotted Tracker 16303 | -3/Section 7 | Spotted Combat Programmer 16306 | -3/Section 7 | Spotted Combat Programmer 16313 | -3/Section 7 | Destroyed Combat Programmer 16315 | -3/Section 7 | X0-1V1 sent allied Striker (x1) 16316 | -3/Section 7 | Garrison activated, responded to threat 16320 | -3/Section 7 | Destroyed Combat Programmer 16323 | -3/Section 7 | Destroyed Tracker 16328 | -3/Section 7 | Destroyed Tracker 16390 | -3/Section 7 | Found Alien Artifact 16390 | -3/Section 7 | Identified Integrated Thermoelectric Network 16390 | -3/Section 7 | Installed Integrated Thermoelectric Network, gained heat-energy exchange potential 16408 | -3/Section 7 | Found Prototype Processor 16408 | -3/Section 7 | Identified Exp. Targeting Computer 16453 | -3/Section 7 | X0-1V1 activates XOMVISION 16515 | -3/Section 7 | Destroyed 7 combat bots 16528 | -3/Section 7 | Local machine network offline 16540 | -3/Section 7 | First assault squad dispatched 16549 | -3/Section 7 | Weapon slot count temporarily expanded by X0-1V1 (+3) 16588 | -3/Section 7 | Destroyed 10 combat bots 16589 | -3/Section 7 | Spotted Alpha 7 16591 | -3/Section 7 | Spotted Alpha 7 16640 | -3/Section 7 | X0-1V1 sent you to a vault 16705 | -3/Section 7 | Found Alien Artifact 16705 | -3/Section 7 | Identified Spacefold Activator 16752 | -3/Section 7 | Spotted S7 Guard 16770 | -3/Section 7 | Allies destroyed S7 Guard 16772 | -3/Section 7 | X0-1V1 put everyone to sleep 16784 | -3/Section 7 | Found Alien Artifact 16784 | -3/Section 7 | Identified Core Physics Calibrator 16881 | -3/Section 7 | Lost 3 allies 17019 | -3/Section 7 | Found Prototype Launcher 17019 | -3/Section 7 | Identified Tactical Quantum Warhead 17087 | -3/Section 7 | Crushed by falling debris 17088 | -3/Section 7 | System corruption reached 10% 17107 | -3/Section 7 | X0-1V1 activates XOMVISION 17145 | -3/Section 7 | Lost 3 parts (2u1w) 17159 | -3/Section 7 | Identified Core Cannon 17177 | -3/Section 7 | Weapon slot count reverted to normal (-3) 17185 | -3/Section 7 | Spotted B-99 Colossus 17311 | -3/Section 7 | Found Alien Artifact 17311 | -3/Section 7 | Identified Integrated Reactor 17311 | -3/Section 7 | Installed Integrated Reactor, increased core energy generation (+10) 17314 | -3/Section 7 | Found Integrated Reactor 17314 | -3/Section 7 | Installed Integrated Reactor, increased core energy generation (+10) 17357 | -3/Section 7 | Found Alien Artifact 17357 | -3/Section 7 | Identified LRC Inertial Stabilizer 17357 | -3/Section 7 | Installed LRC Inertial Stabilizer, increased mass support (+10) 17366 | -3/Section 7 | Found Alien Artifact 17366 | -3/Section 7 | Identified LRC Matter Compressor 17366 | -3/Section 7 | Installed LRC Matter Compressor, increased matter storage capacity (+125) 17397 | -3/Section 7 | Found Alien Artifact 17397 | -3/Section 7 | Identified LRC Insulator 17397 | -3/Section 7 | Installed LRC Insulator, 1 resistance modified: EM +25% 17441 | -3/Section 7 | X0-1V1 sent you into danger 17553 | -3/Section 7 | Identified Core Reset Matrix 17553 | -3/Section 7 | Used Core Reset Matrix 17557 | -3/Section 7 | Detected hypermatrix surge 17557 | -3/Section 7 | Sensed 14 artifacts in vicinity 17558 | -3/Section 7 | Integrated with Sigix Exoskeleton 17570 | -3/Section 7 | Spotted Executioner 17570 | -3/Section 7 | Spotted Executioner 17576 | -3/Section 7 | Spotted Striker 17576 | -3/Section 7 | Spotted Striker 17578 | -3/Section 7 | X0-1V1 sent you into danger 17579 | -3/Section 7 | X0-1V1 woke everyone up 17614 | -3/Section 7 | Destroyed Striker 17624 | -3/Section 7 | Destroyed Striker 17644 | -3/Section 7 | Found Sigix Sheargun 17649 | -3/Section 7 | Spotted Striker 17649 | -3/Section 7 | Spotted Striker 17668 | -3/Section 7 | Core integrity fell below 50% 17670 | -3/Section 7 | Destroyed Striker 17688 | -3/Section 7 | Destroyed Striker 17694 | -3/Section 7 | Found Sigix Shearcannon 17718 | -3/Section 7 | Found Hpw. Transdimensional Reconstructor 17777 | -3/Section 7 | Discovered exit to Research (range 16) 17784 | -3/Section 7 | Sigix Exoskeleton integrity reduced to 80% 17784 | -3/Section 7 | Entered Research 17784 | -2/Research | Evolved 2 slots: Weapon x2 17789 | -2/Research | Emitted hypermatrix ping 17794 | -2/Research | Assembled emerged from beneath the floor 17836 | -2/Research | Found Unknown Launcher 17836 | -2/Research | Identified Fusion Bomb Launcher 17847 | -2/Research | Spotted B-90 Cyclops 17851 | -2/Research | Destroyed B-90 Cyclops 17859 | -2/Research | Build established: Alien-Sigix 17933 | -2/Research | X0-1V1 added 0b10 threat records associated with you (considerable) 17953 | -2/Research | Destroyed 18 combat bots 17955 | -2/Research | Assembled emerged from beneath the floor 17982 | -2/Research | Assembled emerged from beneath the floor 18030 | -2/Research | X0-1V1 redirected Transport squads to designated parking area 18113 | -2/Research | Assembled emerged from beneath the floor 18121 | -2/Research | Identified exit to Access 18121 | -2/Research | X0-1V1 revealed exit location to -1/Access 18138 | -2/Research | Assembled emerged from beneath the floor 18171 | -2/Research | Intercept squad dispatched 18213 | -2/Research | Assembled emerged from beneath the floor 18224 | -2/Research | System corruption reached 10% 18228 | -2/Research | Identified exit to Testing 18228 | -2/Research | X0-1V1 revealed exit location to -2/Testing 18280 | -2/Research | Discovered exit to Access (range 18) 18357 | -2/Research | Core integrity restored by X0-1V1 (+294) 18370 | -2/Research | Spotted B-90 Cyclops 18374 | -2/Research | Entered Testing 18417 | -2/Testing | Spotted Striker 18417 | -2/Testing | Spotted Striker 18421 | -2/Testing | X0-1V1 revealed exit location to -1/Access 18442 | -2/Testing | Found Prototype Energy Cannon 18442 | -2/Testing | Identified Disintegrator 18481 | -2/Testing | Found Prototype Processor 18481 | -2/Testing | Identified Exp. Core Analyzer 18519 | -2/Testing | X0-1V1 put everyone to sleep 18543 | -2/Testing | Entered Access 18543 | -1/Access | Evolved 2 slots: Utility x2 18548 | -1/Access | Emitted hypermatrix ping 18553 | -1/Access | Assembled emerged from beneath the floor 18561 | -1/Access | Destroyed 7 combat bots 18636 | -1/Access | X0-1V1 destroyed Energy Cycler 18636 | -1/Access | Energy Cycler disabled 18645 | -1/Access | Found Hvy. Scimitar of Distortion 18672 | -1/Access | Spotted B-99 Colossus 18680 | -1/Access | Destroyed B-99 Colossus 18700 | -1/Access | Discovered new exit (range 17) 18700 | -1/Access | Crushed by falling debris 18719 | -1/Access | Entered Command 18724 | -1/Command | Emitted hypermatrix ping 18729 | -1/Command | Assembled emerged from beneath the floor 18731 | -1/Command | Lost 3 parts (3u) 18781 | -1/Command | Assembled emerged from beneath the floor 18845 | -1/Command | Assembled emerged from beneath the floor 18846 | -1/Command | Spotted M Guard 18846 | -1/Command | Spotted M Guard 18851 | -1/Command | Spotted Combat Programmer 18851 | -1/Command | Spotted Combat Programmer 18852 | -1/Command | Allies destroyed Combat Programmer 18855 | -1/Command | Destroyed Combat Programmer 18864 | -1/Command | Destroyed M Guard 18868 | -1/Command | Destroyed M Guard 18868 | -1/Command | All MAIN.C guards destroyed 18871 | -1/Command | Found Prototype Device 18871 | -1/Command | Identified AEGIS Remote Shield 18874 | -1/Command | Found Prototype Reactor 18890 | -1/Command | Lost 7 allies 18894 | -1/Command | X0-1V1 sent you to a vault 18921 | -1/Command | Spotted Alpha 7 18921 | -1/Command | Spotted Striker 18921 | -1/Command | Spotted Alpha 7 18921 | -1/Command | Spotted Striker 18921 | -1/Command | Spotted Executioner 18921 | -1/Command | Spotted Executioner 18921 | -1/Command | Spotted Executioner 18921 | -1/Command | Spotted Executioner 18921 | -1/Command | Spotted B-99 Colossus 18924 | -1/Command | Spotted B-99 Colossus 18924 | -1/Command | Destroyed Alpha 7 18931 | -1/Command | X0-1V1 turns hostiles against one another 18938 | -1/Command | Destroyed Striker 18943 | -1/Command | X0-1V1 caused items to flee you 18969 | -1/Command | Destroyed Executioner 18970 | -1/Command | Lost 5 allies 19005 | -1/Command | Destroyed Alpha 7 19012 | -1/Command | Destroyed Executioner 19029 | -1/Command | Destroyed Striker 19031 | -1/Command | Destroyed Executioner 19035 | -1/Command | Destroyed B-99 Colossus 19038 | -1/Command | Discovered new exit (range 15) 19056 | -1/Command | Items stopped fleeing you 19107 | -1/Command | Assembled emerged from beneath the floor 19136 | -1/Command | Assembled emerged from beneath the floor 19182 | -1/Command | Met MAIN.C 19182 | -1/Command | 0b10 Conduit disabled 19192 | -1/Command | MAIN.C's shell transforms into a squad of autonomous robots 19192 | -1/Command | Destroyed MAIN.C Shell 19192 | -1/Command | Spotted M Shell/Def 19192 | -1/Command | Spotted M Shell/Atk 19192 | -1/Command | Spotted M Shell/Def 19192 | -1/Command | Spotted M Shell/Atk 19192 | -1/Command | Spotted M Shell/Atk 19192 | -1/Command | Spotted M Shell/Def 19192 | -1/Command | Spotted M Shell/Atk 19192 | -1/Command | Spotted M Shell/Def 19194 | -1/Command | MAIN.C activated Command garrisons 19221 | -1/Command | Discovered new exit (range 18) 19233 | -1/Command | Sigix Exoskeleton integrity reduced to 60% 19249 | -1/Command | Quantum Reactor reconfigured into Greater Item Mimic 19258 | -1/Command | Spotted B-99 Colossus 19261 | -1/Command | Sigix Exoskeleton integrity reduced to 40% 19315 | -1/Command | Destroyed MAIN.C 19318 | -1/Command | Discovered new exit (range 59) 19318 | -1/Command | Discovered new exit (range 140) 19318 | -1/Command | Extracted map data and part IDs from MAIN.C's data core 19318 | -1/Command | Found Exp. Targeting Computer 19348 | -1/Command | Core integrity restored by X0-1V1 (+306) 19450 | -1/Command | Found Spectral Analyzer 19456 | -1/Command | Found Exp. Phase Shifter 19471 | -1/Command | Warped through subspace to slip node 19471 | -1/Command | Discovered new exit (range 4) 19474 | -1/Command | Entered Access_0 19475 | -1/Access_0 | Sensed 3 artifacts in vicinity 19477 | -1/Access_0 | Met Architect 19485 | -1/Access_0 | Destroyed A8 19503 | -1/Access_0 | Architect warped through subspace 19529 | -1/Access_0 | Subspace Access Node disabled 19558 | -1/Access_0 | Architect warped through subspace 19591 | -1/Access_0 | Architect warped through subspace 19605 | -1/Access_0 | Core integrity restored by X0-1V1 (+323) 19606 | -1/Access_0 | Identified exit to Surface 19606 | -1/Access_0 | X0-1V1 revealed exit location to -0/Surface 19611 | -1/Access_0 | Architect warped through subspace 19618 | -1/Access_0 | A6 warped into view 19648 | -1/Access_0 | Sigix Exoskeleton integrity reduced to 20% 19652 | -1/Access_0 | X0-1V1 whisked you away to safety 19665 | -1/Access_0 | Singularity Gate disabled 19680 | -1/Access_0 | Found Sigix Broadsword 19690 | -1/Access_0 | Core integrity restored by X0-1V1 (+456) 19724 | -1/Access_0 | A5 warped into view 19739 | -1/Access_0 | Destroyed A5 19746 | -1/Access_0 | Weapon slot count temporarily expanded by X0-1V1 (+4) 19750 | -1/Access_0 | Singularity Gate disabled 19789 | -1/Access_0 | X0-1V1 whisked you away to safety 19836 | -1/Access_0 | X0-1V1 sent hostile Y-72 Warden (x1) 19840 | -1/Access_0 | X0-1V1 sent you into danger 19864 | -1/Access_0 | Exoskeleton Destroyed Last Messages --------------- 19854_ Quantum Shear penetrates Wall. 19854_ Penetrated by Quantum Shear. 19855_ A6 follow-up attacks with Enh. Force Lance. 19856_ Penetrated by Quantum Shear. 19857_ Critical hit (Burn: +37). 19858_ A6 follow-up attacks with Enh. Force Lance. 19858_ Acquired 7 matter. 19858_ The swirling icy cloud dissipates. 19859_ Penetrated by Quantum Shear. 19860_ X0-1V1: "Fire in the hole!" 19861_ The unstable cave ceiling collapses. 19861_ A6 follow-up attacks with Enh. Force Lance. 19861_ Critical hit (Impale). 19862_ Quantum Shear penetrates Wall. 19862_ Penetrated by Quantum Shear. 19863_ X0-1V1: "I find this area lacking in decorations." A6 shuts down. 19864_ Penetrated by Quantum Shear. 19864_ Sigix Exoskeleton destroyed. 19864_ X0-1V1 howls with laughter! Map ----- +----------------------------------------------------+ | " ##############??################ #???????? | | ################################## ## ????? | | ################################## ????? | | ################################## ????? | | ################################## ????? | | ################################# ?????? | | #################################" ##????? | | ############################### !!! ####???? | | ############################## =%] ####???? | | ############################" =! ####??? | | ""#############################" ;"## ## #?? | | " ############################ " #### ## ? | | "############################""" ####### ? | | ##################### ####"= #### #### | | ##################### ##%!% ##### | | ####################### # % ## ##### | | #########################" ### ###### | | ""#########"############ ""# ### ####### | | """##"#####"#"###############; p ############ | | " """ """""%"""############## # ############ | | """ #"############ 0 ############# | | % % ############## | | % ############### | | """ """#########;; # ############## | | " #"" """"" ""####### p ############### | | "####"#####"######### X ############### | | ################## ## # ;; ############### | | ###################" %# # ############### | | ################### #" ################## | | ################## ## ################## | | ################# ## ## ################## | | ############### ## ##"##### ################## | | ################ ###"% # ### ##################? | | ####################" ########## ? | | ##################### ## ############# ?? | | ################### "# ############## #####??? | | ################### ##### ####### ####???? | | ############### ## ### ###### ###????? | | ############### ### ###### ###????? | | ################ # ## #### ###### ###????? | | ################### ## #" g ###### ####???? | | ################### h h #### ####???? | | ################### #### ### ####???? | | ######################### #### ####???? | | ######################### #"## ######???? | | ############################" ## ## #######??? | | ######?#################### ##### ######???? | | ######?###################### ###### #####???? | | #####??################################ #####???? | | ####????################################ #####???? | +----------------------------------------------------+ Best States ------------- Heat Dissipation 226 Coolant Potential 130 Energy Generation 111 Energy Capacity 1975 Matter Stores 1000 Matter Capacity 1025 Sight Range 26 Robot Scan Range 20 Terrain Scan Range 16 Terrain Scan Density 10 Base Temperature (-) 150 Armor Coverage 1500 Resistance: KI 60 Resistance: TH 73 Resistance: EX 50 Resistance: EM 75 Resistance: I 50 Resistance: S 50 Resistance: P 50 Core Shielding 20 Point Defense Rating 160 Weapon Cycling 25 Melee Speed Boost 50 Phase Shifting 20 Evasion (%) 89 Targeting Accuracy 12 Melee Accuracy 8 Target Analysis 8 Core Analysis 8 Armor Integrity Analysis 40 Recoil Reduction 6 Matter Filtering 50 Kinecelleration 50 Offensive Hacking 14 Item Schematics ----------------- Exp. Coolant Injector | -3/Section 7 | Archive Imp. KE Penetrator | -3/Section 7 | Archive Robot Schematics ------------------ None Fabricated ------------ Enh. Nova Cannon | x2 | -4/Factory | Preloaded Repaired ---------- Arm. Wheel | 13% | -5/Factory Studied --------- Fusion Bomb Launcher | -2/Testing | Hacked Alien Tech Used ----------------- Phase Redirector Matter Drive Terrabomb Sigix Broadsword Navigation Efficiency Matrix Integrated Thermoelectric Network Spacefold Activator Core Physics Calibrator Core Cannon Integrated Reactor LRC Inertial Stabilizer LRC Matter Compressor LRC Insulator Core Reset Matrix Sigix Exoskeleton Sigix Sheargun Sigix Shearcannon High-powered Transdimensional Reconstructor Achievements -------------- Anti-science Crusade Artifact Hunter Behind The Curtain Cool Guys I Have Friends Everywhere Most Wanted This Is My Hole Challenges ------------ None Game ------ Seed PietyMassCape Manual? 0 Play Time 03:46:48 Cumulative 583.2 hours Start 2026.09.08 @ 00:25:57 End 2026.09.11 @ 02:51:56 Sessions 9 Manual Loads 0 Difficulty Rogue Special Mode None Game No. 391 Rogue 391 Adventurer 0 Explorer 0 Win Type - Total 58 Types 49/0/7/2/0/0/0/0/0/0 Lore% 84 Gallery% 77 Achievement% 60 Wizard Run 0 Options --------- Layout 0 ASCII 0 Keyboard 1 Movement Numpad Keybinds 0 Fullscreen 2 Font 24/Terminus Map View 76x50 Zoom Use 0% Tactical HUD 1 Map Filters NONE Filters NONE Steam 1 RUN: 891014cd-afa7-4337-ba62-375c69759347